Cogmind - Beta 15 @@@ ROGUE MODE // 2025.06.30 @ 11:13:39 Player: Asimov Result: Self-destructed Performance ------------- Evolutions (1) 500 Regions Visited (2) 400 Robots Destroyed (6) 30 Value Destroyed (145) 145 Prototype IDs (4) 80 Alien Tech Used (0) 0 Bonus (0) 0 TOTAL SCORE: 1155 Bonus ------- None Cogmind --------- Core Integrity 295/400 Matter 227/300 Energy 125/125 System Corruption 0% Temperature Cool (4) Movement Core (150) Ox2 Location -9/Materials Parts ------- > --- POWER (2) -------- Light Ion Engine > --- PROPULSION (3) --- (None) > --- UTILITY (2) ------ Small Storage Unit Propulsion Shielding > --- WEAPON (2) ------- (None) > --- INVENTORY (8) ---- Cooling System Light Assault Rifle Peak State ------------ > --- POWER ------------ Light Ion Engine > --- PROPULSION ------- Wheel Wheel > --- UTILITY ---------- Small Storage Unit > --- WEAPON ----------- Medium Laser Assault Rifle > --- INVENTORY -------- (None) [Rating: 6] Favorites ----------- Power Light Ion Engine Engine Light Ion Engine Propulsion Flight Unit Wheel Wheel Flight Unit Flight Unit Utility Small Storage Unit Storage Small Storage Unit Protection Propulsion Shielding Weapon Light Assault Rifle Energy Gun Medium Laser Ballistic Gun Light Assault Rifle Ballistic Cannon Light Cannon Build | -11 -10 -9 ------- Run | Yrd Mat Mat Slots Evolved 2 | . . 2 Power 1 | . . 1 Propulsion 1 | . . 1 Utility . | . . . Weapon . | . . . Parts Attached 13 | 6 7 . Power 2 | 1 1 . Engine 2 | 1 1 . Core . | . . . Reactor . | . . . Propulsion 5 | 2 3 . Treads . | . . . Leg . | . . . Wheel 2 | 2 . . Hover . | . . . Flight 3 | . 3 . Utility 2 | 1 1 . Device . | . . . Storage 1 | 1 . . Processor . | . . . Hackware . | . . . Protection 1 | . 1 . Artifact . | . . . Weapon 4 | 2 2 . Energy Gun 1 | 1 . . Energy Cannon . | . . . Ballistic Gun 2 | 1 1 . Ballistic Cannon 1 | . 1 . Launcher . | . . . Special Weapon . | . . . Impact Weapon . | . . . Slashing Weapon . | . . . Piercing Weapon . | . . . Special Melee Weapon . | . . . Unidentified Prototypes . | . . . Parts Lost 5 | . 2 3 Power 1 | . 1 . Propulsion 3 | . 1 2 Utility . | . . . Weapon 1 | . . 1 Highest Loss Streak 2 | . 2 2 To Critical Strikes . | . . . Average Backups 2 | 1 3 2 Power . | . . . Propulsion . | . . . Utility . | . . 1 Weapon 1 | . 1 1 Tool/Special . | . . . Unused Backups 6 | . 5 1 Power 1 | . 1 . Propulsion 2 | . 2 . Utility 1 | . . 1 Weapon 2 | . 2 . Tool/Special . | . . . Average Slot Usage (%) 71 | . 73 62 Engine 13 | . 13 11 Wheel 3 | . 4 . Flight 22 | . 23 18 Storage 13 | . 14 11 Protection 2 | . . 11 Energy Gun 1 | . 2 . Ballistic Gun 9 | . 12 . Ballistic Cannon 3 | . 1 11 Peak Build Rating 6 | 6 6 6 Average Rating 5 | 4 5 5 On Entrance 4 | . 6 6 Naked Turns . | . . . Heaviest Build 12 | 12 12 12 Greatest Support 20 | 20 20 8 Greatest Overweight (x) 2 | 1 1 2 Average Overweight (x) . | . . 1 Largest Inventory Capacity 8 | 8 8 8 Average Capacity 7 | 7 8 8 Most Carried 8 | 2 8 2 Average Carried 2 | . 3 2 Final Capacity 8 | 8 8 8 Final Carried 2 | 2 2 2 Class Distribution -------------------- 79% | Mutant 20% | Scavenger-Mutant Dominant Class ---------------- Mutant | -10/Materials Mutant | -9/Materials Resources | -11 -10 -9 ----------- Run | Yrd Mat Mat Matter Collected 333 | 196 137 . Remotely . | . . . Salvage Created 179 | . 141 38 Parts 12 | . 10 2 Haulers Intercepted . | . . . Recyclers Shooed 1 | . 1 . Parts Field Recycled . | . . . Retrieved Matter . | . . . Parts Self-Destructed . | . . . Prevented . | . . . Kills | -11 -10 -9 ------- Run | Yrd Mat Mat Combat Hostiles Destroyed 6 | . 5 1 Guns 5 | . 5 . Cannons 1 | . . 1 Classes Destroyed 2 | . 2 . Swarmer 3 | . 3 . Grunt 3 | . 2 1 Best Kill Streak 3 | . 3 1 Combat Bots Only 3 | . 3 1 Max Kills in Single Turn 1 | . 1 1 Gunslinging . | . . . Exploded . | . . . Melee . | . . . Uniques/NPCs Destroyed . | . . . Combat | -11 -10 -9 -------- Run | Yrd Mat Mat Hostile Shots Fired 59 | . 27 32 Missed 14 | . 11 3 Hits 45 | . 16 29 Projectile 45 | . 16 29 Damage Taken 499 | . 157 342 Core 133 | . 28 105 Absorbed by Shields . | . . . Redirected to Shielding 18 | . . 18 Core Remaining (%) 94 | 100 88 . Volleys Fired 40 | . 23 17 Largest 2 | . 2 1 Hottest 70 | . 70 30 Shots Fired 45 | . 28 17 Gun 28 | . 28 . Cannon 17 | . . 17 Launcher . | . . . Special . | . . . Kinetic 40 | . 23 17 Thermal 5 | . 5 . Explosive . | . . . Electromagnetic . | . . . Robot Hit Streak 7 | . 6 7 Robot Miss Streak 3 | . 3 3 Penetration Max . | . . . Secondary Targets 1 | . 1 . Max Gunslinging Chain 1 | . 1 . Shots Hit Robots 31 | . 20 11 Core Hits 11 | . 9 2 Critical Kills . | . . . Critical Parts Destroyed . | . . . Critical Strikes . | . . . Melee Attacks . | . . . Impact . | . . . Slashing . | . . . Piercing . | . . . Sneak Attacks . | . . . Combat Hostiles . | . . . Follow-up Attacks . | . . . Damage Inflicted 379 | . 191 188 Guns 191 | . 191 . Cannons 188 | . . 188 Explosions . | . . . Melee . | . . . Ramming . | . . . Kinetic 340 | . 152 188 Thermal 39 | . 39 . Explosive . | . . . Electromagnetic . | . . . Impact . | . . . Slashing . | . . . Piercing . | . . . Highest Corruption . | . . . Average Corruption . | . . . Corruption Purged . | . . . Corruption Blocked . | . . . Overload Shots . | . . . Overflow Damage . | . . . Projectiles . | . . . Explosions . | . . . Melee . | . . . Knockbacks 5 | . . 5 Impact . | . . . Kinetic 5 | . . 5 Secondary . | . . . Self-Inflicted Damage . | . . . Shots . | . . . Rammed . | . . . Targets Rammed . | . . . Kicked . | . . . Crushed . | . . . Highest Temperature 45 | . 45 10 Average Temperature 12 | . 15 5 Received Heat Transfer 243 | . 54 189 Siege Activations . | . . . Martial Activations . | . . . Shielding Activations . | . . . Robots Disrupted . | . . . Combat Hostiles . | . . . Robots Corrupted . | . . . Combat Hostiles . | . . . Parts Fried . | . . . Impact Corruptions . | . . . Robots Melted . | . . . Combat Hostiles . | . . . Parts Melted . | . . . Heat Transferred 111 | . 111 . Parts Sabotaged . | . . . Parts Stolen . | . . . Parts Stripped . | . . . Power Chain Reactions . | . . . Alert | -11 -10 -9 ------- Run | Yrd Mat Mat Maximum Alert Level . | . . . Low Security (%) 100 | 100 100 100 Level 1 . | . . . Level 2 . | . . . Level 3 . | . . . Level 4 . | . . . Level 5 . | . . . High Security . | . . . Max Security . | . . . Peak Influence 70 | . 70 30 Initial . | . . . Average 10 | . 12 4 Influence Increases 160 | . 130 30 Destroy 0b10 Robot/C 120 | . 100 20 Destroy Leader 30 | . 20 10 Successful Hack 10 | . 10 . Influence Decreases 160 | . 130 30 Time Decay 130 | . 110 20 Lost Part 30 | . 20 10 Squads Dispatched 2 | . 1 1 Investigation . | . . . Extermination . | . . . Reinforcement 2 | . 1 1 Assault . | . . . Garrison . | . . . Intercept . | . . . Searches Triggered . | . . . Construction Impeded . | . . . Haulers Reinforced . | . . . Active Scanning Responses . | . . . Cargo Convoy Interrupts . | . . . Stealth | -11 -10 -9 --------- Run | Yrd Mat Mat Distress Signals 1 | . 1 . Communications Jammed . | . . . Distress Signals . | . . . Times Spotted 16 | . 11 5 Peak Tracking Total 5 | . 5 4 Tactical Retreats . | . . . Traps | -11 -10 -9 ------- Run | Yrd Mat Mat Traps Triggered . | . . . Indirectly . | . . . Trap Hack Attempts . | . . . Triggered . | . . . Disarmed . | . . . Reprogrammed . | . . . Reused . | . . . Traps Extracted . | . . . Installed . | . . . Triggered . | . . . Machines | -11 -10 -9 ---------- Run | Yrd Mat Mat Machines Disabled . | . . . Max in Single Turn . | . . . Machines Repaired . | . . . Machines Dismantled . | . . . Machines Sabotaged . | . . . Overloaded Fab Kills . | . . . Hacking | -11 -10 -9 --------- Run | Yrd Mat Mat Machines Accessed 3 | . 3 . Terminals 3 | . 3 . Fabricators . | . . . Repair Stations . | . . . Recycling Units . | . . . Scanalyzers . | . . . Garrison Access . | . . . Total Hacks 5 | . 5 . Successful 4 | . 4 . Failed 1 | . 1 . Catastrophic . | . . . Database Lockouts . | . . . Manual . | . . . Terminals 5 | . 5 . Fabricators . | . . . Repair Stations . | . . . Recycling Units . | . . . Scanalyzers . | . . . Garrison Access . | . . . Terminal Hacks 4 | . 4 . Prototype ID Bank 2 | . 2 . Alert Level 1 | . 1 . Zone Layout 1 | . 1 . Fabricator Hacks . | . . . Repair Station Hacks . | . . . Recycling Unit Hacks . | . . . Scanalyzer . | . . . Garrison Access Hacks . | . . . Unauthorized Hacks . | . . . Terminals . | . . . Fabricators . | . . . Repair Stations . | . . . Recycling Units . | . . . Scanalyzers . | . . . Garrison Access . | . . . Data Cores Recovered . | . . . Used . | . . . Hacking Detections 1 | . 1 . Full Trace Events . | . . . Feedback Events . | . . . Feedback Blocked . | . . . Robot Schematics Acquired . | . . . Robots Built . | . . . Authchips . | . . . Time . | . . . Total Robot Build Rating . | . . . Part Schematics Acquired . | . . . Parts Built . | . . . Authchips . | . . . Time . | . . . Total Part Build Rating . | . . . Parts Repaired . | . . . Time . | . . . Parts Recycled . | . . . Recycled Matter . | . . . Retrieved Matter . | . . . Retrieved Components . | . . . Parts Scanalyzed . | . . . Part Schematics Acquired . | . . . Parts Damaged . | . . . Bothacking | -11 -10 -9 ------------ Run | Yrd Mat Mat Used RIF Installer . | . . . Robots Hacked . | . . . Non-combat . | . . . Combat . | . . . Robot Hacks Applied . | . . . Relay Couplers Released . | . . . Fabnet Peak Effective % . | . . . Robots Rewired . | . . . Allies Hacked . | . . . Hacks Repelled . | . . . Allies | -11 -10 -9 -------- Run | Yrd Mat Mat Total Allies . | . . . Largest Group . | . . . Highest-Rated Group . | . . . Highest-Rated Ally . | . . . Total Orders . | . . . Ally Attacks . | . . . Total Damage . | . . . Kills . | . . . Allies Corrupted . | . . . Allies Melted . | . . . Intel | -11 -10 -9 ------- Run | Yrd Mat Mat Active Infowar (turns) . | . . . Robot Analysis Total . | . . . Derelict Logs Recovered . | . . . Drone Launches . | . . . Drone Recoveries . | . . . Exploration | -11 -10 -9 ------------- Run | Yrd Mat Mat Turns Passed 614 | 45 462 107 Spaces Moved 455 | 43 353 59 Core 5 | 5 . . Treads . | . . . Legs . | . . . Wheels 87 | 38 49 . Hover . | . . . Flight 363 | . 304 59 Fastest Speed 37 | 50 37 117 Average Speed 109 | 80 110 122 Slowest Speed 200 | 100 117 200 Overloaded Moves . | . . . Propulsion Burnouts . | . . . Robots Hopped . | . . . Potential Cave-ins . | . . . Cave-ins Triggered . | . . . Exploration Rate (%) 14 | 3 33 8 Regions Visited 2 Branch Regions . Pre-discovered Areas . | . . . Known Exits Taken . | . . . Unknown Exits Taken 2 | 1 1 . Scrap Searched . | . . . Spaces Dug . | . . . Terrain Destroyed . | . . . Melee . | . . . Projectile . | . . . AOE . | . . . Terrain Rammed . | . . . Walls Destroyed . | . . . Machines Disabled . | . . . Actions | -11 -10 -9 --------- Run | Yrd Mat Mat Total 529 | 50 403 76 Wait . | . . . Move 453 | 42 352 59 Hop . | . . . Pick Up 13 | 2 11 . Fast Attach 6 | 6 . . Attach 4 | . 4 . Detach 1 | . 1 . Swap 3 | . 3 . Drop 9 | . 9 . Fire 40 | . 23 17 Melee . | . . . Ram . | . . . Kick . | . . . Crush . | . . . Escape Stasis . | . . . Rewire . | . . . Trap . | . . . Miscellaneous . | . . . Route ------- -11/Scrapyard -10/Materials -9/Materials History --------- Turn | Location | Event 22 | -11/Scrapyard | Discovered new exit (range 15) 46 | -11/Scrapyard | Entered Materials 309 | -10/Materials | Build established: Mutant 410 | -10/Materials | Discovered new exit (range 9) 508 | -10/Materials | Entered another Materials area 508 | -9/Materials | Evolved 2 slots: Power x1, Propulsion x1 615 | -9/Materials | Self-destructed Last Messages --------------- 00483_ Dropped Med. Laser. 00503_ R-06 Scavenger collects Med. Laser. PARAMETERS=POWER+1,PROPULSION+1 LOCATION=UNKNOWN GOAL=ESCAPE 00509_ T-07 Excavator is excavating. 00509_ O-16 Technician: "IFF HANDSHAKE FAILED. SECURING TERMINAL." 00512_ T-07 Excavator is excavating. 00517_ ALERT: Hostiles spotted, dispatching reinforcements to Terminal M004. 00529_ T-07 Excavator is excavating. 00536_ K-01 Serf collects debris. 00577_ G-34 Mercenary knocked back. 00578_ Flight Unit destroyed. 00583_ G-47 Trooper knocked back. 00585_ G-47 Trooper destroyed. 00597_ G-34 Mercenary knocked back. 00612_ Flight Unit destroyed. 00614_ Lgt. Cannon destroyed. Map ----- +----------------------------------------------------+ | | | | | | | | | | | | | | | | | | | | | | | | | | | | | ?????????????????????????????????????????????????? | | ?????????????????????????????????????????????????? | | ?????????????????????????????????????????????????? | | ?????????????????????????????????????????????????? | | ?????????????????????????????????????????????????? | | ????????????????###????#######???????????????????? | | ????????????????# /????# #???????????????????? | | ???????????###### ###### g #???????????????????? | | ???????????# + """ #???????????????????? | | ???????????# ##Y""" #???????????????????? | | ###????????# ##g""" #???????????????????? | | # ###?????# ## @ #???????????????????? | | ? #?????# ## #???????????????????? | | ### ######## #####g##???????????????????? | | % ^ *%% ??????????????????? | | = ?????????????????? | | ############# ???????????????? | | ######???????????# """ """ ?????????????? | | ?????????????????# """ """ #????????????? | | ????????????????? """ """ #????????????? | | ????????????????? #????????????? | | ????????????????? ???#????????????? | | ?????????????????##+####+## ????????????????? | | ??????????????????? ?????? ????????????????? | | ???????????????????" ?????? ????????????????? | | ???????????????????????????# ????????????????? | | ???????????????????????????? ????????????????? | | ???????????????????????????? ?????????????????? | | ????????????????????????????##???????????????????? | | ?????????????????????????????????????????????????? | | ?????????????????????????????????????????????????? | | ?????????????????????????????????????????????????? | | ?????????????????????????????????????????????????? | | ?????????????????????????????????????????????????? | | ?????????????????????????????????????????????????? | | ?????????????????????????????????????????????????? | +----------------------------------------------------+ Best States ------------- Heat Dissipation 28 Energy Generation 10 Energy Capacity 125 Matter Stores 300 Matter Capacity 300 Sight Range 16 Terrain Scan Density 10 Propulsion Shielding 33 Evasion (%) 44 Item Schematics ----------------- None Robot Schematics ------------------ None Fabricated ------------ Nothing Repaired ---------- Nothing Alien Tech Used ----------------- None Achievements -------------- None Challenges ------------ None Game ------ Seed ColdDynamicSpoofer Manual? 0 Play Time 00:07:48 Cumulative 11.2 hours Start 2025.06.30 @ 11:06:55 End 2025.06.30 @ 11:13:39 Sessions 1 Manual Loads 0 Difficulty Rogue Special Mode None Game No. 31 Rogue 31 Adventurer 0 Explorer 0 Win Type - Total 0 Types 0/0/0/0/0/0/0/0/0/0 Lore% 9 Gallery% 16 Achievement% 12 Wizard Run 0 Options --------- Layout 1 ASCII 0 Keyboard 0 Movement Arrows Keybinds 0 Fullscreen 1 Font 24/Smallcaps Map View 50x35 Zoom Use 0% Tactical HUD 1 Map Filters NONE Filters NONE Steam 1 RUN: b6b97566-17dd-4625-91f1-1e27bb39a29e